bitfinex/quotes_ETHUSD_20250123
["timestamp","ask_amount","ask_price","bid_price","bid_amount"]
[1737658684950,5.98038659,3241.0,3240.4,0.8131]
[1737658685338,5.98038659,3241.0,3240.4,3.89908]
[1737658686162,3.08555,3241.0,3240.5,3.08594]
[1737658686557,5.98003659,3241.3,3240.6,3.08584]
[1737658686837,3.6978812,3241.8,3241.0,3.08541]
[1737658687040,3.08473,3241.8,3241.3,3.08514]
[1737658687379,3.08473,3241.8,3241.2,3.08523]
[1737658687380,3.0848,3241.7,3241.4,0.8141]
[1737658687955,6.08477,3241.8,3241.4,0.8141]
[1737658688175,3.0,3241.8,3241.4,0.8141]
[1737658688470,3.0847,3241.9,3241.4,3.89918]
[1737658688672,3.0847,3241.9,3241.4,4.597619]
[1737658689170,3.0,3242.0,3241.6,3.08489]
[1737658689369,3.0,3242.0,3241.4,4.597619]
[1737658689552,3.08473,3241.8,3241.4,0.8141]
[1737658689738,3.08499,3241.5,3241.0,0.8141]
[1737658690965,3.08499,3241.5,3241.0,3.89955]
[1737658691163,2.89483659,3241.6,3241.0,3.89948]
[1737658691346,2.89483659,3241.6,3241.1,3.08535]
[1737658692254,2.89483659,3241.6,3241.1,6.17065]
[1737658692467,2.89483659,3241.6,3241.1,3.0853]
[1737658692747,5.97973659,3241.6,3241.1,3.0853]
[1737658693378,5.97973659,3241.6,3241.1,6.81964999]
[1737658693578,5.97973659,3241.6,3241.2,3.08526]
[1737658693579,2.89483659,3241.6,3241.2,3.08526]
[1737658693775,2.89483659,3241.9,3241.6,0.8324]
[1737658694350,2.89483659,3241.9,3241.3,3.0851]
[1737658694551,3.08471,3241.8,3241.3,3.0851]
[1737658694777,2.89483659,3241.9,3241.4,3.08506]
[1737658694985,2.89483659,3241.9,3241.5,3.08498]
[1737658695183,2.89483659,3241.9,3241.3,3.08509]
[1737658695384,2.89483659,3241.9,3241.4,3.08507]
[1737658695788,2.89483659,3241.9,3241.5,3.08494]
[1737658696756,3.0,3242.1,3241.5,3.08494]
[1737658696953,2.89483659,3242.5,3242.0,0.8216]
[1737658697159,2.89483659,3242.5,3242.1,3.08442]
[1737658697483,3.0,3242.4,3242.1,3.08442]
[1737658697652,3.0,3242.4,3242.0,0.8216]
[1737658697653,5.97860659,3242.8,3242.2,3.08432]
[1737658697852,3.57316725,3242.8,3242.3,3.08414]
[1737658698080,3.0,3242.7,3242.3,3.08414]
[1737658698268,5.97864659,3242.8,3242.2,3.08432]
[1737658699408,3.0,3242.7,3242.2,3.08427]
[1737658700124,5.97864659,3242.8,3242.2,3.08427]
[1737658700290,5.97864659,3242.8,3242.2,6.16853]
[1737658700486,6.78260659,3243.1,3242.6,3.91504]
[1737658700796,6.08357,3243.0,3242.6,0.8311]
[1737658701001,3.08367,3242.9,3242.6,0.8311]
[1737658701504,2.89483659,3242.8,3242.6,0.8311]
[1737658701915,4.10104425,3242.8,3242.3,3.91525]
[1737658702937,7.18480425,3242.8,3242.3,0.8311]
[1737658703133,3.08392,3242.7,3242.3,0.8311]
[1737658703517,4.10104425,3242.8,3242.3,3.91532]
[1737658704243,2.89483659,3242.8,3242.5,3.08403]
[1737658704757,5.89483659,3243.1,3242.3,0.8311]
[1737658704905,3.0833,3243.3,3242.7,3.0838]
[1737658705106,3.0,3243.2,3242.7,3.0838]
[1737658705308,3.0,3243.2,3242.9,0.8202]
[1737658705631,6.08339,3243.2,3242.9,0.8202]
[1737658706024,2.89483659,3243.1,3242.9,0.8202]
[1737658707330,6.68473659,3243.4,3242.9,3.90383]
[1737658707535,2.89483659,3243.7,3243.1,3.08337]
[1737658707733,2.89483659,3244.0,3243.5,3.08307]
[1737658708045,5.97745659,3244.0,3243.5,3.90957]
[1737658708241,3.0,3243.9,3243.5,3.90957]
[1737658708939,3.08271,3243.9,3243.5,0.8265]
[1737658709740,2.89483659,3244.0,3243.5,0.8265]
[1737658710147,3.08276,3243.9,3243.5,0.8265]
[1737658710350,2.89483659,3244.0,3243.5,0.8265]
[1737658710919,5.97749659,3244.0,3243.5,0.8265]
[1737658711814,3.08271,3243.9,3243.5,0.8265]
[1737658712019,3.0827,3243.9,3243.5,1.217468]
[1737658712947,3.08283,3243.8,3243.5,0.8265]
[1737658713336,2.89483659,3243.7,3242.2,3.63037831]
[1737658713574,2.89483659,3243.4,3243.1,0.7568]
[1737658714255,5.97781659,3243.7,3243.1,0.7568]
[1737658714548,2.89483659,3243.7,3243.1,0.7568]
[1737658714753,2.89483659,3243.7,3243.2,3.08332]
[1737658715822,5.97773659,3243.7,3243.1,0.7568]
[1737658716015,5.97773659,3243.7,3243.1,3.84023]
[1737658716649,2.89483659,3243.7,3243.1,0.7568]
[1737658716841,2.89483659,3243.4,3242.7,0.8024]
[1737658717039,2.89483659,3243.4,3242.9,3.08365]
[1737658717215,5.97803659,3243.4,3242.9,3.08365]
[1737658718462,5.97803659,3243.4,3242.7,3.88623]
[1737658718757,5.97803659,3243.4,3242.9,3.08364]
[1737658718954,5.97803659,3243.4,3242.9,3.08361]
[1737658720250,2.89483659,3243.4,3242.9,3.08361]
[1737658720445,2.89483659,3243.4,3243.0,3.08354]
[1737658720957,3.0,3243.9,3243.2,3.08337]
[1737658721133,6.08272,3243.9,3243.4,3.08315]
[1737658721339,3.0,3243.9,3243.1,0.751]
[1737658721634,3.0,3243.9,3243.7,0.751]
[1737658722827,5.97745659,3244.0,3243.7,0.751]
[1737658723430,2.89483659,3244.0,3243.7,0.751]
[1737658723650,5.97749659,3244.0,3243.7,0.751]
[1737658724436,3.08247,3244.2,3243.7,4.217246]
[1737658725333,5.97716659,3244.3,3243.8,3.08273]
[1737658725531,3.08233,3244.3,3243.8,3.08273]
[1737658725831,3.08224,3244.4,3243.9,3.08267]
[1737658726661,2.89483659,3244.6,3243.8,3.0828]
[1737658726843,2.89483659,3244.9,3244.3,3.84416]
[1737658727043,0.15391344,3245.6,3244.6,3.08196]
[1737658727044,9.05765659,3245.3,3244.6,3.08196]
[1737658727347,3.08153,3245.2,3244.8,0.7625]
[1737658728141,3.08159,3245.1,3244.8,0.7625]
[1737658728670,3.08153,3245.2,3244.8,0.7625]
[1737658728969,6.1619,3245.8,3245.0,0.7969]
[1737658729155,3.98660366,3245.8,3245.1,3.08151]
[1737658729356,3.0,3245.5,3245.1,3.08151]
[1737658729873,2.89483659,3245.6,3245.1,3.08151]
[1737658730049,5.97600659,3245.6,3245.0,3.87856]
[1737658730937,2.89483659,3245.6,3245.2,3.0814]
[1737658732050,2.89483659,3245.6,3245.3,0.824]
[1737658732775,3.0,3245.8,3245.3,3.90537]
[1737658733443,3.0,3245.8,3245.3,0.824]
[1737658733652,6.08094,3245.8,3245.3,0.824]
[1737658734051,3.0,3245.8,3245.3,3.9053]
[1737658734459,6.08091,3245.8,3245.3,0.824]
[1737658734658,3.081,3245.7,3245.3,0.824]
[1737658735576,3.08111,3245.6,3245.3,0.824]
[1737658736364,6.08097,3245.8,3245.3,0.824]
[1737658737141,3.081,3245.7,3245.3,0.824]
[1737658737569,6.16209,3245.7,3245.3,0.824]
[1737658737777,3.081,3245.7,3245.3,0.824]
[1737658737971,3.0811,3245.6,3245.3,0.824]
[1737658738878,6.08098,3245.8,3245.3,0.824]
[1737658739581,3.08103,3245.7,3245.3,0.824]
[1737658740546,3.0,3245.8,3245.3,0.824]
[1737658740741,6.08091,3245.8,3245.3,0.824]
[1737658740981,3.08091,3245.8,3245.3,0.824]
[1737658741348,3.08091,3245.8,3245.3,1.522694]
[1737658743148,3.08102,3245.7,3245.3,1.522694]
[1737658743343,3.08096,3245.8,3245.3,1.522694]
[1737658744586,3.08111,3245.6,3245.3,1.522694]
[1737658744798,2.89483659,3245.6,3245.3,0.824]
[1737658745097,3.0812,3245.5,3245.3,0.824]
[1737658747787,2.89483659,3245.6,3245.0,0.8144]
[1737658747985,2.89483659,3245.1,3244.7,0.8144]
[1737658748145,5.97589659,3245.7,3245.0,3.08166]
[1737658748353,3.64683659,3246.3,3245.6,0.8144]
[1737658748612,5.97533659,3246.3,3245.7,3.08099]
[1737658748754,3.08055,3246.2,3245.7,3.08099]
[1737658749059,3.08062,3246.1,3245.6,0.8144]
[1737658749259,2.89483659,3246.3,3245.6,4.28501]
[1737658749465,3.08058,3246.2,3245.6,4.28501]
[1737658749665,2.89483659,3246.0,3245.6,0.8144]
[1737658749983,3.08088,3245.9,3245.6,0.8144]
[1737658750190,3.08095,3245.8,3245.6,0.8144]
[1737658750359,3.08088,3245.9,3245.6,0.8144]
[1737658750566,3.0809,3245.8,3245.6,0.8144]
[1737658750983,3.08099,3245.7,3245.6,0.8144]
[1737658751286,3.08087,3245.9,3245.2,3.87513]
[1737658751458,3.08083,3245.9,3245.3,0.387513]
[1737658751648,3.08097,3245.8,3245.2,3.87515]
[1737658752152,5.97558659,3246.0,3245.2,0.7937]
[1737658752358,3.08075,3246.0,3245.5,3.08117]
[1737658753286,3.08075,3246.0,3245.6,0.8252]
[1737658753781,3.08063,3246.1,3245.6,0.8252]
[1737658753982,3.08054,3246.2,3245.7,3.471618]
[1737658754165,3.08037,3246.4,3246.0,0.8252]
[1737658755259,6.16079,3246.4,3246.0,0.8252]
[1737658755559,3.08037,3246.4,3246.0,0.8252]
[1737658758181,6.16079,3246.4,3246.0,0.8252]
[1737658758390,3.08037,3246.4,3246.0,0.8252]
[1737658758578,3.08037,3246.4,3246.0,1.215809]
[1737658759193,3.08045,3246.3,3246.0,1.215809]
[1737658759963,3.0,3246.0,3245.2,0.7617]
[1737658760162,5.97596659,3245.6,3245.2,0.7617]
[1737658760379,3.08094,3245.8,3245.2,0.7617]
[1737658760584,3.08094,3245.8,3245.2,3.84316]
[1737658760778,3.08102,3245.7,3245.2,0.7617]
[1737658763098,3.08109,3245.6,3245.2,0.7617]
[1737658765866,3.0,3245.8,3245.2,0.7617]
[1737658767014,0.7777,3246.3,3245.2,1.146027]
[1737658767197,2.89483659,3246.5,3245.4,0.7617]
[1737658767434,0.7777,3246.6,3245.6,0.7617]
[1737658767584,3.7777,3246.6,3245.6,3.84278]
[1737658767908,2.89483659,3246.5,3245.6,3.84278]
[1737658768411,5.97513659,3246.5,3245.6,0.7617]
[1737658768610,5.89483659,3246.2,3245.6,0.7617]
[1737658768818,0.40687821,3246.1,3245.6,0.7617]
[1737658769027,3.48752821,3246.1,3245.6,0.7617]
[1737658769194,2.89483659,3245.9,3245.6,0.7617]
[1737658769385,6.34402263,3245.9,3245.1,0.7617]
[1737658769586,0.36836604,3245.8,3245.1,0.7617]
[1737658769811,3.11955664,3245.7,3245.1,0.7617]
[1737658770114,3.11955664,3245.7,3244.5,0.7925]
[1737658770115,2.89483659,3245.3,3244.5,0.7925]
[1737658770319,5.97623659,3245.3,3244.5,3.87462]
[1737658770722,2.89483659,3245.3,3244.5,3.87462]
[1737658770892,6.16248,3245.5,3244.5,3.87462]
[1737658771089,3.08134,3245.4,3244.5,0.7925]
[1737658771295,3.08134,3245.4,3244.6,3.469443]
[1737658772126,3.08121,3245.5,3244.6,3.469443]
[1737658772421,3.08138,3245.3,3244.6,3.469443]
[1737658772732,3.08148,3245.2,3244.6,3.469443]
[1737658773149,3.08123,3245.5,3244.6,3.469443]
[1737658773438,3.08147,3245.2,3244.6,3.469443]
[1737658773589,3.08147,3245.2,3244.7,0.4261943]
[1737658774340,3.08157,3245.1,3244.8,0.7906]
[1737658774646,3.08147,3245.2,3244.8,0.7906]
[1737658775175,3.08158,3245.1,3244.8,0.7906]
[1737658775672,3.08175,3244.9,3244.3,0.7967]
[1737658775859,0.7787,3245.4,3244.3,0.7967]
[1737658775860,0.03852391,3244.8,3244.3,0.7967]
[1737658776066,3.08207,3244.6,3244.3,0.7967]
[1737658776570,0.03852727,3244.8,3244.3,0.7967]
[1737658776789,3.08236,3244.3,3244.0,0.7588]
[1737658777083,2.89483659,3244.7,3244.0,0.7588]
[1737658777239,3.08268,3244.0,3243.7,0.7588]
[1737658777439,3.08251,3244.1,3243.7,0.7588]
[1737658777640,3.08265,3244.0,3243.7,0.7588]
[1737658778876,3.08299,3243.6,3243.5,3.20178912]
[1737658779383,3.08319,3243.4,3242.9,0.7817]
[1737658779579,3.08319,3243.4,3242.9,1.168244]
[1737658779877,3.08326,3243.4,3242.9,0.7817]
[1737658780746,3.08326,3243.4,3242.9,3.86535]
[1737658781385,3.08299,3243.6,3242.9,3.86535]
[1737658781562,3.08299,3243.6,3243.0,3.08353]
[1737658782178,0.8175,3243.7,3243.0,3.08353]
[1737658782381,3.90041,3243.7,3243.1,3.08338]
[1737658783549,3.08282,3243.8,3243.2,3.08337]
[1737658783783,3.08292,3243.7,3243.1,3.08338]
[1737658783948,3.08292,3243.7,3243.1,6.16679]
[1737658784144,3.08282,3243.8,3243.2,3.08336]
[1737658785455,3.08291,3243.7,3243.2,3.08336]
[1737658786689,3.08291,3243.7,3243.1,3.08338]
[1737658787052,3.08291,3243.7,3243.2,3.08336]
[1737658787449,3.08265,3244.0,3243.4,3.85916]
[1737658788088,3.08281,3243.8,3243.4,0.776]
[1737658788389,3.08297,3243.7,3243.4,0.776]
[1737658788686,3.08297,3243.7,3243.1,3.88656]
[1737658789309,3.71953659,3243.8,3243.1,0.8031]
[1737658789503,3.0831,3243.5,3243.1,0.8031]
[1737658791006,6.53785366,3243.7,3243.1,0.8031]
[1737658791165,3.08305,3243.6,3243.1,0.8031]
[1737658791509,6.16591,3243.7,3243.1,3.88653]
[1737658791658,3.083,3243.6,3243.1,3.88653]
[1737658792208,3.08294,3243.7,3243.2,3.08334]
[1737658792510,3.08272,3243.9,3243.3,3.08322]
[1737658792721,3.08234,3244.3,3243.5,3.08308]
[1737658792925,6.16475,3244.3,3243.7,3.89408]
[1737658793100,3.08234,3244.3,3243.7,3.89408]
[1737658793625,3.08254,3244.1,3243.7,0.8112]
[1737658793841,6.16515,3244.1,3243.7,0.8112]
[1737658794123,3.08268,3244.0,3243.7,0.8112]
[1737658794293,3.08275,3243.9,3243.4,3.89437]
[1737658795033,3.51135159,3244.1,3243.4,0.8112]
[1737658795193,3.08289,3243.8,3243.4,0.8112]
[1737658795393,3.08294,3243.7,3243.4,0.8112]
[1737658795892,3.08272,3243.9,3243.4,0.8112]
[1737658796321,3.08272,3243.9,3243.4,3.89436]
[1737658796533,0.7837,3243.4,3241.7,0.7803]
[1737658796697,0.7837,3243.4,3241.3,3.08511]
[1737658796698,0.7837,3242.2,3241.4,3.98208912]
[1737658797028,0.5452675,3242.1,3241.5,0.7803]
[1737658797214,3.08357,3243.0,3242.4,0.7803]
[1737658798005,3.08357,3243.0,3242.4,3.86442]
[1737658799629,3.08357,3243.0,3242.4,0.7803]
[1737658799833,3.08369,3242.9,3242.4,0.7803]
[1737658800930,3.08357,3243.0,3242.4,0.7803]
[1737658801137,3.08357,3243.0,3242.4,4.250871]
[1737658801334,3.08335,3243.3,3242.4,1.19758821]
[1737658801536,3.08335,3243.3,3242.6,3.08386]
[1737658802057,3.08354,3243.1,3242.4,3.86442]
[1737658802259,3.08366,3242.9,3242.4,0.7803]
[1737658802622,3.08388,3242.7,3242.4,0.7803]
[1737658802936,3.08404,3242.5,3242.1,0.7601]
[1737658803107,3.08388,3242.7,3241.7,0.7601]
[1737658803108,3.08437,3242.2,3241.7,0.7601]
[1737658803448,3.08442,3242.1,3241.7,0.7601]
[1737658803615,2.89483659,3242.0,3241.7,0.7601]
[1737658806012,5.97935659,3242.0,3241.7,0.7601]
[1737658806213,2.89483659,3242.0,3241.7,0.7601]
[1737658807205,3.0849,3241.6,3241.3,0.8085]
[1737658807414,5.97972659,3241.6,3241.3,0.8085]
[1737658808327,3.08489,3241.6,3241.3,0.8085]
[1737658808511,2.89483659,3241.4,3241.3,0.8085]
[1737658809041,5.97993659,3241.4,3240.9,0.8219]
[1737658809223,5.97993659,3241.4,3240.9,3.92392562]
[1737658809630,3.08519,3241.3,3240.9,0.8219]
[1737658809819,2.89483659,3241.1,3240.9,0.8219]
[1737658810633,5.98027659,3241.1,3240.6,0.7505]
[1737658810839,2.89483659,3240.8,3240.2,3.83669]
[1737658811144,2.89483659,3241.4,3240.8,3.08563]
[1737658811380,3.68245566,3242.0,3241.0,0.55]
[1737658811381,2.89483659,3242.0,3241.0,0.55]
[1737658811546,2.89483659,3242.3,3241.3,0.55]
[1737658811747,1.43861491,3242.8,3242.2,3.08424]
[1737658811748,2.89483659,3242.6,3242.2,3.08424]
[1737658812053,2.89483659,3243.0,3242.6,3.08393]
[1737658812236,2.89483659,3243.0,3242.6,0.8034]
[1737658812423,2.89483659,3243.3,3242.9,3.08363]
[1737658813149,2.89483659,3243.3,3242.8,3.08368]
[1737658813449,3.08384,3242.7,3242.3,0.7782]
[1737658813647,2.89483659,3242.4,3242.3,0.7782]
[1737658813834,2.89483659,3242.4,3242.3,1.2261389]
[1737658814015,7.32713156,3242.7,3242.3,1.2261389]
[1737658814212,3.08401,3242.6,3242.0,4.41271]
[1737658814648,7.32713156,3242.7,3242.0,4.41271]
[1737658815156,7.32713156,3242.7,3242.1,3.08434]
[1737658815850,7.32713156,3242.7,3242.2,3.0843]
[1737658816539,4.24322156,3242.7,3242.0,0.7782]
[1737658816726,6.59184469,3242.4,3241.7,0.7595]
[1737658816936,3.50763469,3242.4,3241.9,3.08458]
[1737658817324,3.50763469,3242.4,3241.7,0.7595]
[1737658817556,3.08423,3242.3,3241.8,3.08464]
[1737658817954,3.50763469,3242.4,3241.8,3.08464]
[1737658818361,3.50763469,3242.4,3241.7,0.7595]
[1737658818668,3.08428,3242.3,3241.7,3.84424]
[1737658818894,3.08428,3242.3,3241.7,4.537153]
[1737658819250,3.08428,3242.3,3241.7,1.452413]
[1737658819592,3.08409,3242.5,3241.8,6.16932]
[1737658819731,0.7694,3243.2,3242.1,0.55]
[1737658819936,3.81874687,3243.5,3242.9,3.08364]
[1737658820165,4.58585156,3243.5,3242.9,3.08364]
[1737658820339,3.08319,3243.4,3242.8,0.7608]
[1737658820540,3.0,3243.4,3242.8,0.7608]
[1737658820792,3.0,3243.4,3242.8,3.84454]
[1737658821087,3.08275,3243.9,3243.2,3.0833]
[1737658821378,3.08285,3243.8,3243.2,3.08335]
[1737658822181,3.08288,3243.8,3242.8,3.84452]
[1737658822358,0.73558687,3243.8,3243.2,3.08335]
[1737658822537,3.91155,3244.3,3243.3,0.03083088]
[1737658822753,3.91155,3244.3,3243.6,3.08293]
[1737658822958,3.91155,3244.3,3243.2,0.55]
[1737658822959,3.73558687,3244.2,3243.2,0.55]
[1737658823159,3.08261,3244.0,3243.2,3.63333]
[1737658823471,3.08303,3243.6,3243.1,0.7766]
[1737658823655,3.08318,3243.4,3242.8,3.85622]
[1737658823992,0.73558687,3243.5,3242.8,3.85622]
[1737658823993,0.73558687,3243.5,3242.9,3.08364]
[1737658824148,3.81873687,3243.5,3242.8,3.85622]
[1737658824874,3.08329,3243.3,3242.8,0.7725]
[1737658825352,6.16632,3243.5,3242.8,3.85624]
[1737658825766,3.08315,3243.5,3242.8,3.85624]
[1737658825960,0.7949,3243.6,3243.0,3.08355]
[1737658826173,0.73558687,3244.0,3243.2,3.08334]
[1737658826174,3.87761,3243.9,3243.2,3.08334]
[1737658826406,3.08282,3243.8,3243.2,3.08334]
[1737658826587,4.61319687,3243.9,3243.3,3.08326]
[1737658827472,4.61319687,3243.9,3243.4,3.08317]
[1737658827678,0.7939,3244.5,3243.8,3.08277]
[1737658827853,3.87611,3244.5,3243.8,3.08277]
[1737658828054,3.0,3244.4,3243.8,3.08277]
[1737658828860,3.0,3244.4,3243.8,3.08274]
[1737658829055,3.0,3244.4,3243.8,6.16549]
[1737658829253,3.87611,3244.5,3243.8,6.16549]
[1737658829458,3.08232,3244.4,3243.8,3.08274]
[1737658831269,3.08236,3244.3,3243.8,3.08274]
[1737658831672,3.08242,3244.2,3243.6,3.08291]
[1737658831872,3.08238,3244.3,3243.7,3.08285]
[1737658832496,3.08238,3244.3,3243.6,3.08291]
[1737658832697,3.08238,3244.3,3243.7,3.08281]
[1737658834426,3.08248,3244.2,3243.6,3.5879661]
[1737658834582,3.08223,3244.4,3243.6,3.5879661]
[1737658834780,3.08245,3244.2,3243.7,3.08283]
[1737658836911,3.08245,3244.2,3243.6,3.5879661]
[1737658837078,3.08245,3244.2,3243.7,3.08288]
[1737658838013,6.16454,3244.4,3243.7,3.08288]
[1737658838180,3.08236,3244.3,3243.7,3.88498461]
[1737658840881,3.08223,3244.4,3243.7,0.80210461]
[1737658841082,3.08245,3244.2,3243.7,0.80210461]
[1737658841507,3.08245,3244.2,3243.7,3.88498461]
[1737658841723,3.08223,3244.4,3243.9,0.7809]
[1737658842223,3.08242,3244.2,3243.9,0.7809]
[1737658842392,3.73558687,3244.6,3243.9,0.7809]
[1737658842594,3.08261,3244.0,3243.3,3.08327]
[1737658842792,3.08292,3243.7,3243.4,0.7524]
[1737658842997,3.08292,3243.7,3243.1,0.7524]
[1737658843314,3.08325,3243.4,3243.1,0.7524]
[1737658843517,0.0385371,3243.6,3243.1,0.7524]
[1737658843518,3.08334,3243.3,3243.1,0.7524]
[1737658843683,3.08334,3243.3,3242.8,1.216924]
[1737658843883,3.08334,3243.3,3242.9,0.7384484]
[1737658844389,3.08334,3243.3,3242.8,0.8313]
[1737658844704,3.08351,3243.1,3242.5,0.8039]
[1737658844915,3.08394,3242.6,3242.2,0.8039]
[1737658846318,3.08394,3242.6,3241.9,3.0846]
[1737658846484,3.08413,3242.4,3241.9,38.88845]
[1737658846689,3.08394,3242.6,3241.9,41.99047562]
[1737658847052,3.08394,3242.6,3242.0,3.08448]
[1737658847352,3.08379,3242.8,3242.1,3.08439]
[1737658847500,3.08391,3242.7,3242.1,3.08439]
[1737658848185,3.81900687,3243.2,3241.9,0.8039]
[1737658848186,3.08339,3243.2,3242.5,3.08403]
[1737658848386,3.08339,3243.2,3242.5,1.3186]
[1737658848588,3.08339,3243.2,3242.6,3.08385]
[1737658848892,3.08339,3243.2,3242.6,3.832505]
[1737658849093,3.08339,3243.2,3242.7,3.08384]
[1737658849298,3.08339,3243.2,3242.6,3.832505]
[1737658849713,3.08339,3243.2,3242.6,3.86334114]
[1737658850540,3.08339,3243.2,3242.6,0.748655]
[1737658850726,3.08362,3243.0,3242.5,1.3186]
[1737658851387,3.0834,3243.2,3242.5,4.40263]
[1737658851808,3.08371,3242.9,3242.5,0.7686]
[1737658852011,3.08356,3243.0,3242.5,0.7686]
[1737658852213,3.08385,3242.7,3242.0,3.84346]
[1737658852506,6.16778,3242.7,3242.1,3.08439]
[1737658852689,3.08385,3242.7,3242.1,3.08439]
[1737658853125,3.08385,3242.7,3242.0,4.227806]
[1737658853312,3.08385,3242.7,3241.7,35.0]
[1737658853313,3.08415,3242.4,3241.7,35.0]
[1737658853521,3.08453,3242.0,3241.6,0.7718]
[1737658853739,3.08463,3241.9,3241.4,3.08508]
[1737658854511,3.08452,3242.0,3241.3,0.7718]
[1737658854695,3.08461,3241.9,3241.4,3.08507]
[1737658854891,3.08473,3241.8,3241.3,0.7718]
[1737658855129,3.08473,3241.8,3241.3,4.242662]
[1737658855291,3.08473,3241.8,3241.3,1.157502]
[1737658855699,3.08473,3241.8,3241.3,4.242682]
[1737658855897,3.08452,3242.0,3241.4,3.08508]
[1737658856128,3.83767,3242.2,3241.4,0.55]
[1737658856454,0.7861,3242.5,3241.7,3.08476]
[1737658856640,3.08423,3242.3,3241.7,3.08476]
[1737658857333,3.0,3242.2,3241.5,3.2557402]
[1737658857490,6.08433,3242.2,3241.5,3.2556602]
[1737658857691,6.08433,3242.2,3241.5,6.3405802]
[1737658857896,3.08444,3242.1,3241.5,0.1707502]
[1737658858132,3.08457,3242.0,3241.5,3.2557002]
[1737658858630,6.08438,3242.2,3241.6,3.08483]
[1737658858937,3.08447,3242.1,3241.6,0.38057002]
[1737658859321,3.08447,3242.1,3241.6,3.46546002]
[1737658860130,6.08438,3242.2,3241.6,0.38057002]
[1737658860345,6.08438,3242.2,3241.5,0.1707502]
[1737658860346,3.08451,3242.0,3241.5,3.2556902]
[1737658860726,6.08438,3242.2,3241.5,3.2556502]
[1737658860925,3.08442,3242.1,3241.5,3.2556502]
[1737658861302,6.08438,3242.2,3241.5,3.2556502]
[1737658861500,0.7861,3242.5,3242.2,3.08429]
[1737658861714,3.08346,3243.2,3242.3,0.7705]
[1737658862049,3.86777,3243.4,3242.8,3.08373]
[1737658862338,0.7892,3243.8,3243.2,3.08331]
[1737658862502,3.87201,3243.8,3243.2,3.08329]
[1737658862703,4.29641872,3243.8,3243.0,0.8177]
[1737658862932,4.29641872,3243.8,3241.5,3.2556602]
[1737658862933,3.08375,3242.8,3242.3,0.7942]
[1737658863136,3.08385,3242.7,3242.3,0.7942]
[1737658863918,3.08375,3242.8,3242.1,3.63441]
[1737658864118,3.08375,3242.8,3242.2,3.0843]
[1737658864519,3.08375,3242.8,3242.2,6.16856]
[1737658864721,3.08375,3242.8,3242.2,3.08426]
[1737658864909,3.08375,3242.8,3242.3,3.08421]
[1737658865111,3.08375,3242.8,3242.2,3.08426]
[1737658865445,3.08386,3242.7,3242.2,3.08426]
[1737658865741,3.08375,3242.8,3242.2,3.08426]
[1737658866740,3.08359,3243.0,3242.3,3.08417]
[1737658866936,3.08372,3242.9,3242.3,3.08417]
[1737658867640,3.08376,3242.8,3242.3,3.08417]
[1737658867863,3.08399,3242.6,3242.0,0.7637]
[1737658868048,3.0842,3242.4,3241.8,0.8046]
[1737658868243,0.8305,3242.6,3241.6,3.08487]
[1737658868244,3.08439,3242.2,3241.6,3.08487]
[1737658868836,3.08432,3242.3,3241.6,3.08482]
[1737658869038,3.08432,3242.3,3241.7,3.08478]
[1737658869445,3.08441,3242.2,3241.5,0.9753502]
[1737658869654,3.08441,3242.2,3241.6,3.08482]
[1737658870629,3.08441,3242.2,3241.6,6.16963]
[1737658870825,3.08414,3242.4,3241.5,0.8046]
[1737658870826,0.0385572,3242.1,3241.5,0.8046]
[1737658871030,3.08471,3241.8,3241.5,0.8046]
[1737658871474,6.16937,3241.9,3241.5,0.8046]
[1737658871727,3.08472,3241.8,3241.3,3.08515]
[1737658871955,3.08472,3241.8,3240.6,0.63121273]
[1737658871956,0.03856019,3241.7,3240.9,0.8181]
[1737658872231,3.08522,3241.3,3240.5,3.08588]
[1737658872436,3.08537,3241.1,3240.6,0.8174]
[1737658872967,0.03856902,3241.1,3240.3,0.8174]
[1737658873294,3.0,3240.7,3239.6,0.8174]
[1737658873435,3.08615,3240.3,3239.7,3.08661]
[1737658873795,3.08659,3239.9,3239.3,0.8174]
[1737658873934,3.0867,3239.7,3239.3,0.8174]
[1737658874136,3.08661,3239.8,3239.3,0.8174]
[1737658874342,3.0867,3239.7,3239.0,3.2126004]
[1737658874540,6.59372872,3240.0,3239.1,3.08725]
[1737658874836,3.08655,3239.9,3239.2,3.08715]
[1737658875270,3.08655,3239.9,3239.3,3.08706]
[1737658876071,3.08681,3239.6,3239.0,3.90567437]
[1737658876271,3.12526732,3239.8,3239.0,3.90567437]
[1737658876644,3.50721872,3239.7,3239.0,3.2126004]
[1737658876848,3.6632486,3239.8,3239.1,3.08727]
[1737658877185,3.08651,3240.0,3239.2,3.08718]
[1737658877386,3.0,3239.9,3239.0,6.2999404]
[1737658877586,3.0,3239.9,3239.1,3.08727]
[1737658877742,3.0,3239.9,3239.2,3.0871]
[1737658878084,3.0,3239.9,3238.7,3.11846863]
[1737658878240,3.0,3239.9,3239.3,3.08708]
[1737658879066,3.0,3239.7,3239.3,3.08708]
[1737658879266,3.0,3239.7,3238.9,3.6374]
[1737658879466,3.0,3239.7,3239.0,3.0873]
[1737658879665,3.0,3239.7,3239.1,3.08719]
[1737658879869,3.0,3239.7,3239.2,3.08717]
[1737658880057,3.0,3239.9,3239.3,3.08701]
[1737658880256,3.0,3240.1,3239.2,0.03086863]
[1737658880462,6.08634,3240.1,3239.4,3.08693]
[1737658880660,3.08651,3239.9,3239.4,3.08693]
[1737658880865,3.08651,3239.9,3239.2,3.08716]
[1737658881193,3.0,3240.1,3239.5,3.0868]
[1737658881658,6.08634,3240.1,3239.5,3.0868]